[Event "Titled Tuesday Blitz April 11 Early 2023"]
[White "Mirzoev, Azer"]
[Black "Hadzimanolis, Antonios"]
[WhiteFideId "13400304"]
[BlackFideId "4202813"]
[WhiteElo "2525"]
[BlackElo "2242"]
[Result "1-0"]
[Round "10"]
[TimeControl "180+2"]
[Date "2023.04.11"]
[WhiteClock "0:00:15"]
[BlackClock "0:00:01"]

1. c4 {[%clk 0:03:00]}  Nf6 {[%clk 0:02:58]} 2. Nc3 {[%clk 0:02:59]}  e6 {[%clk 0:02:58]} 3. e4 {[%clk 0:02:59]}  d5 {[%clk 0:02:57]} 4. e5 {[%clk 0:02:59]}  d4 {[%clk 0:02:55]} 5. exf6 {[%clk 0:02:58]}  dxc3 {[%clk 0:02:55]} 6. bxc3 {[%clk 0:02:58]}  gxf6 {[%clk 0:02:48]} 7. d4 {[%clk 0:02:57]}  c5 {[%clk 0:02:45]} 8. Nf3 {[%clk 0:02:57]}  Nc6 {[%clk 0:02:44]} 9. d5 {[%clk 0:02:55]}  Ne5 {[%clk 0:02:43]} 10. Be2 {[%clk 0:02:48]}  Rg8 {[%clk 0:02:42]} 11. O-O {[%clk 0:02:37]}  Bd6 {[%clk 0:02:41]} 12. Nxe5 {[%clk 0:02:24]}  Bxe5 {[%clk 0:02:41]} 13. Rb1 {[%clk 0:02:17]}  Qc7 {[%clk 0:02:31]} 14. g3 {[%clk 0:02:16]}  exd5 {[%clk 0:02:24]} 15. Qxd5 {[%clk 0:02:07]}  Rb8 {[%clk 0:02:18]} 16. Bh5 {[%clk 0:01:51]}  Bg4 {[%clk 0:01:46]} 17. Bxg4 {[%clk 0:01:44]}  Rxg4 {[%clk 0:01:47]} 18. Re1 {[%clk 0:01:44]}  Kf8 {[%clk 0:01:37]} 19. Bh6+ {[%clk 0:01:30]}  Kg8 {[%clk 0:01:36]} 20. Qf3 {[%clk 0:01:31]}  Rg6 {[%clk 0:01:32]} 21. Bd2 {[%clk 0:01:12]}  b6 {[%clk 0:01:27]} 22. Rbd1 {[%clk 0:01:11]}  Rd8 {[%clk 0:01:24]} 23. Bc1 {[%clk 0:01:10]}  Rd6 {[%clk 0:01:10]} 24. Kg2 {[%clk 0:01:08]}  Qd8 {[%clk 0:01:04]} 25. Rd5 {[%clk 0:01:07]}  Rxd5 {[%clk 0:00:30]} 26. cxd5 {[%clk 0:01:08]}  b5 {[%clk 0:00:27]} 27. h4 {[%clk 0:01:07]}  c4 {[%clk 0:00:21]} 28. h5 {[%clk 0:01:06]}  Rg7 {[%clk 0:00:19]} 29. Bh6 {[%clk 0:01:04]}  a5 {[%clk 0:00:10]} 30. Bxg7 {[%clk 0:01:04]}  Kxg7 {[%clk 0:00:10]} 31. Re4 {[%clk 0:01:04]}  Kf8 {[%clk 0:00:10]} 32. Rg4 {[%clk 0:01:02]}  Qd7 {[%clk 0:00:09]} 33. h6 {[%clk 0:00:57]}  Ke7 {[%clk 0:00:08]} 34. Rg7 {[%clk 0:00:57]}  b4 {[%clk 0:00:08]} 35. cxb4 {[%clk 0:00:56]}  c3 {[%clk 0:00:07]} 36. Qe4 {[%clk 0:00:39]}  axb4 {[%clk 0:00:06]} 37. Qxb4+ {[%clk 0:00:35]}  Qd6 {[%clk 0:00:04]} 38. Qb7+ {[%clk 0:00:33]}  Qc7 {[%clk 0:00:03]} 39. Qxc7+ {[%clk 0:00:21]}  Bxc7 {[%clk 0:00:04]} 40. Rg4 {[%clk 0:00:21]}  Kd6 {[%clk 0:00:04]} 41. Rc4 {[%clk 0:00:20]}  Ba5 {[%clk 0:00:04]} 42. Kf3 {[%clk 0:00:18]}  Kxd5 {[%clk 0:00:05]} 43. Rc8 {[%clk 0:00:18]}  Kd4 {[%clk 0:00:05]} 44. Ke2 {[%clk 0:00:18]}  Ke4 {[%clk 0:00:04]} 45. a4 {[%clk 0:00:18]}  Kd4 {[%clk 0:00:04]} 46. Rc6 {[%clk 0:00:18]}  f5 {[%clk 0:00:04]} 47. Rc8 {[%clk 0:00:17]}  Kd5 {[%clk 0:00:04]} 48. f3 {[%clk 0:00:17]}  Kd4 {[%clk 0:00:04]} 49. Rc6 {[%clk 0:00:16]}  Bb4 {[%clk 0:00:04]} 50. Rc8 {[%clk 0:00:17]}  Ba5 {[%clk 0:00:04]} 51. g4 {[%clk 0:00:17]}  fxg4 {[%clk 0:00:03]} 52. fxg4 {[%clk 0:00:17]}  Ke4 {[%clk 0:00:04]} 53. Rc4+ {[%clk 0:00:17]}  Kd5 {[%clk 0:00:04]} 54. Kd3 {[%clk 0:00:16]}  Bd8 {[%clk 0:00:02]} 55. Rxc3 {[%clk 0:00:16]}  Ke5 {[%clk 0:00:01]} 56. a5 {[%clk 0:00:15]} 1-0


[Site "https://www.chess.com"]

[Event "Titled Tuesday Blitz April 11 Early 2023"]
[White "Al-Tarboush, Ward"]
[Black "Toncheva, Nadya"]
[WhiteFideId "7601450"]
[BlackFideId "2924056"]
[WhiteElo "2265"]
[BlackElo "2101"]
[Result "1-0"]
[Round "10"]
[TimeControl "180+2"]
[Date "2023.04.11"]
[WhiteClock "0:01:16"]
[BlackClock "0:00:05"]

1. e4 {[%clk 0:03:00]}  c5 {[%clk 0:02:59]} 2. Nf3 {[%clk 0:03:01]}  Nc6 {[%clk 0:03:00]} 3. d4 {[%clk 0:03:01]}  cxd4 {[%clk 0:03:01]} 4. Nxd4 {[%clk 0:03:01]}  g6 {[%clk 0:03:01]} 5. c4 {[%clk 0:03:01]}  Bg7 {[%clk 0:03:02]} 6. Be3 {[%clk 0:03:01]}  Nf6 {[%clk 0:03:02]} 7. Nc3 {[%clk 0:03:00]}  O-O {[%clk 0:03:03]} 8. Be2 {[%clk 0:02:59]}  d6 {[%clk 0:03:03]} 9. O-O {[%clk 0:02:59]}  Bd7 {[%clk 0:03:03]} 10. f3 {[%clk 0:03:00]}  Nxd4 {[%clk 0:03:04]} 11. Bxd4 {[%clk 0:03:00]}  a5 {[%clk 0:03:04]} 12. b3 {[%clk 0:02:56]}  Bc6 {[%clk 0:03:05]} 13. Qd2 {[%clk 0:02:56]}  Nd7 {[%clk 0:03:05]} 14. Bxg7 {[%clk 0:02:52]}  Kxg7 {[%clk 0:03:06]} 15. Rfd1 {[%clk 0:02:48]}  Qb6+ {[%clk 0:03:02]} 16. Kh1 {[%clk 0:02:48]}  Nc5 {[%clk 0:03:00]} 17. Rab1 {[%clk 0:02:47]}  Qb4 {[%clk 0:02:57]} 18. Qb2 {[%clk 0:02:45]}  Kg8 {[%clk 0:02:53]} 19. a3 {[%clk 0:02:44]}  Qb6 {[%clk 0:02:45]} 20. b4 {[%clk 0:02:43]}  axb4 {[%clk 0:02:44]} 21. axb4 {[%clk 0:02:44]}  Na4 {[%clk 0:02:42]} 22. Nxa4 {[%clk 0:02:43]}  Bxa4 {[%clk 0:02:37]} 23. Rdc1 {[%clk 0:02:41]}  Bd7 {[%clk 0:02:36]} 24. Qd2 {[%clk 0:02:36]}  Be6 {[%clk 0:02:36]} 25. c5 {[%clk 0:02:36]}  dxc5 {[%clk 0:02:33]} 26. bxc5 {[%clk 0:02:37]}  Qc7 {[%clk 0:02:31]} 27. Rb5 {[%clk 0:02:32]}  Ra2 {[%clk 0:02:29]} 28. Qe3 {[%clk 0:02:30]}  Rd8 {[%clk 0:02:23]} 29. Rcb1 {[%clk 0:02:26]}  Rdd2 {[%clk 0:02:12]} 30. Bf1 {[%clk 0:02:21]}  Bh3 {[%clk 0:01:28]} 31. Rxb7 {[%clk 0:02:18]}  Bxg2+ {[%clk 0:00:46]} 32. Bxg2 {[%clk 0:02:06]}  Qe5 {[%clk 0:00:42]} 33. Qh6 {[%clk 0:01:59]}  Rdb2 {[%clk 0:00:16]} 34. R7xb2 {[%clk 0:01:49]}  Rxb2 {[%clk 0:00:17]} 35. Rxb2 {[%clk 0:01:47]}  Qxb2 {[%clk 0:00:18]} 36. Qe3 {[%clk 0:01:41]}  Qb1+ {[%clk 0:00:18]} 37. Qg1 {[%clk 0:01:41]}  Qc2 {[%clk 0:00:18]} 38. h3 {[%clk 0:01:41]}  h5 {[%clk 0:00:19]} 39. Kh2 {[%clk 0:01:40]}  Kg7 {[%clk 0:00:18]} 40. Qd4+ {[%clk 0:01:39]}  f6 {[%clk 0:00:17]} 41. e5 {[%clk 0:01:38]}  fxe5 {[%clk 0:00:14]} 42. Qxe5+ {[%clk 0:01:37]}  Kf7 {[%clk 0:00:13]} 43. Qd5+ {[%clk 0:01:36]}  Kg7 {[%clk 0:00:13]} 44. c6 {[%clk 0:01:36]}  Qc1 {[%clk 0:00:12]} 45. Qe5+ {[%clk 0:01:36]}  Kf7 {[%clk 0:00:12]} 46. c7 {[%clk 0:01:36]}  h4 {[%clk 0:00:09]} 47. f4 {[%clk 0:01:30]}  Qc2 {[%clk 0:00:06]} 48. Qd5+ {[%clk 0:01:20]}  Kg7 {[%clk 0:00:06]} 49. Qd7 {[%clk 0:01:19]}  Qf2 {[%clk 0:00:04]} 50. Qxe7+ {[%clk 0:01:18]}  Kh6 {[%clk 0:00:04]} 51. Qg5+ {[%clk 0:01:17]}  Kg7 {[%clk 0:00:04]} 52. c8=Q {[%clk 0:01:16]}  Qg3+ {[%clk 0:00:04]} 53. Qxg3 {[%clk 0:01:16]}  hxg3+ {[%clk 0:00:05]} 54. Kxg3 {[%clk 0:01:16]} 1-0


[Site "https://www.chess.com"]

[Event "Titled Tuesday Blitz April 11 Early 2023"]
[White "Kopczynski, Michal"]
[Black "Gontcharov, Vladislav"]
[WhiteFideId "1124200"]
[BlackFideId "4123492"]
[WhiteElo "2212"]
[BlackElo "2420"]
[Result "1-0"]
[Round "10"]
[TimeControl "180+2"]
[Date "2023.04.11"]
[WhiteClock "0:00:15"]
[BlackClock "0:00:16"]

1. e4 {[%clk 0:03:00]}  e6 {[%clk 0:02:59]} 2. d4 {[%clk 0:03:01]}  d5 {[%clk 0:02:59]} 3. Nc3 {[%clk 0:03:01]}  Bb4 {[%clk 0:02:59]} 4. e5 {[%clk 0:03:02]}  c5 {[%clk 0:02:58]} 5. dxc5 {[%clk 0:03:03]}  Bxc3+ {[%clk 0:02:50]} 6. bxc3 {[%clk 0:03:02]}  Ne7 {[%clk 0:02:50]} 7. f4 {[%clk 0:03:02]}  Qa5 {[%clk 0:02:48]} 8. Nf3 {[%clk 0:03:02]}  Qxc3+ {[%clk 0:02:45]} 9. Bd2 {[%clk 0:03:02]}  Qxc5 {[%clk 0:02:45]} 10. Bd3 {[%clk 0:03:03]}  Nbc6 {[%clk 0:02:45]} 11. Qe2 {[%clk 0:03:04]}  Nd4 {[%clk 0:02:41]} 12. Nxd4 {[%clk 0:03:01]}  Qxd4 {[%clk 0:02:41]} 13. Rb1 {[%clk 0:02:58]}  O-O {[%clk 0:02:22]} 14. Be3 {[%clk 0:02:58]}  Qc3+ {[%clk 0:02:22]} 15. Kf2 {[%clk 0:02:58]}  Nc6 {[%clk 0:02:16]} 16. Rb3 {[%clk 0:02:51]}  Qa5 {[%clk 0:02:15]} 17. Qh5 {[%clk 0:02:44]}  g6 {[%clk 0:02:15]} 18. Qg4 {[%clk 0:02:32]}  f5 {[%clk 0:01:52]} 19. Qe2 {[%clk 0:02:25]}  Qd8 {[%clk 0:01:38]} 20. h4 {[%clk 0:02:24]}  b6 {[%clk 0:01:35]} 21. h5 {[%clk 0:02:23]}  g5 {[%clk 0:01:36]} 22. fxg5 {[%clk 0:02:14]}  Nxe5 {[%clk 0:01:33]} 23. Bf4 {[%clk 0:01:58]}  Ng4+ {[%clk 0:01:29]} 24. Kg3 {[%clk 0:01:57]}  Bd7 {[%clk 0:01:25]} 25. g6 {[%clk 0:01:47]}  Qf6 {[%clk 0:01:18]} 26. gxh7+ {[%clk 0:01:39]}  Kxh7 {[%clk 0:01:09]} 27. Re1 {[%clk 0:01:38]}  Rg8 {[%clk 0:01:08]} 28. Kh3 {[%clk 0:01:37]}  Qf7 {[%clk 0:01:02]} 29. Kh4 {[%clk 0:01:31]}  Be8 {[%clk 0:00:46]} 30. Qxe6 {[%clk 0:01:13]}  Qxh5+ {[%clk 0:00:45]} 31. Kg3 {[%clk 0:01:13]}  Qh2+ {[%clk 0:00:23]} 32. Kf3 {[%clk 0:01:12]}  Ne5+ {[%clk 0:00:23]} 33. Qxe5 {[%clk 0:00:50]}  Qxg2+ {[%clk 0:00:22]} 34. Ke3 {[%clk 0:00:51]}  Bg6 {[%clk 0:00:21]} 35. Kd4 {[%clk 0:00:39]}  Rae8 {[%clk 0:00:19]} 36. Qc7+ {[%clk 0:00:24]}  Rg7 {[%clk 0:00:19]} 37. Rxe8 {[%clk 0:00:22]}  Rxc7 {[%clk 0:00:18]} 38. Bxc7 {[%clk 0:00:22]}  Bxe8 {[%clk 0:00:18]} 39. Bxf5+ {[%clk 0:00:22]}  Bg6 {[%clk 0:00:18]} 40. Bxg6+ {[%clk 0:00:15]}  Kxg6 {[%clk 0:00:18]} 41. Rg3+ {[%clk 0:00:14]}  Qxg3 {[%clk 0:00:17]} 42. Bxg3 {[%clk 0:00:15]}  Kf5 {[%clk 0:00:16]} 43. Kxd5 {[%clk 0:00:15]} 1-0


[Site "https://www.chess.com"]

[Event "Titled Tuesday Blitz April 11 Early 2023"]
[White "Santos Flores, Alberto"]
[Black "Mikhailovsky, Vladimir"]
[WhiteFideId "3601234"]
[BlackFideId "34105414"]
[WhiteElo "2235"]
[BlackElo "2275"]
[Result "0-1"]
[Round "10"]
[TimeControl "180+2"]
[Date "2023.04.11"]
[WhiteClock "0:02:25"]
[BlackClock "0:01:27"]

1. e4 {[%clk 0:03:00]}  c6 {[%clk 0:02:50]} 2. d4 {[%clk 0:03:00]}  d5 {[%clk 0:02:47]} 3. Nc3 {[%clk 0:03:01]}  dxe4 {[%clk 0:02:46]} 4. Nxe4 {[%clk 0:03:02]}  Nf6 {[%clk 0:02:46]} 5. Nxf6+ {[%clk 0:03:02]}  exf6 {[%clk 0:02:47]} 6. c3 {[%clk 0:03:02]}  Bd6 {[%clk 0:02:47]} 7. Bd3 {[%clk 0:03:02]}  O-O {[%clk 0:02:47]} 8. Ne2 {[%clk 0:03:03]}  Re8 {[%clk 0:02:48]} 9. O-O {[%clk 0:03:03]}  Nd7 {[%clk 0:02:48]} 10. Ng3 {[%clk 0:03:03]}  Nf8 {[%clk 0:02:48]} 11. Qh5 {[%clk 0:03:03]}  g6 {[%clk 0:02:41]} 12. Qh6 {[%clk 0:03:02]}  Ne6 {[%clk 0:02:37]} 13. f4 {[%clk 0:02:55]}  Bf8 {[%clk 0:02:32]} 14. Qh4 {[%clk 0:02:55]}  Nxd4 {[%clk 0:02:18]} 15. Bb1 {[%clk 0:02:43]}  Ne2+ {[%clk 0:02:07]} 16. Nxe2 {[%clk 0:02:42]}  Rxe2 {[%clk 0:02:08]} 17. f5 {[%clk 0:02:41]}  g5 {[%clk 0:01:40]} 18. Qg4 {[%clk 0:02:34]}  Qb6+ {[%clk 0:01:34]} 19. Kh1 {[%clk 0:02:33]}  Qf2 {[%clk 0:01:34]} 20. Rg1 {[%clk 0:02:25]}  Re1 {[%clk 0:01:27]} 0-1


[Site "https://www.chess.com"]

[Event "Titled Tuesday Blitz April 11 Early 2023"]
[White "Leebit02"]
[Black "Skvortsov, Andrei"]
[BlackFideId "24108600"]
[WhiteElo "2449"]
[BlackElo "2259"]
[Result "1-0"]
[Round "10"]
[TimeControl "180+2"]
[Date "2023.04.11"]
[WhiteClock "0:00:09"]
[BlackClock "0:00:17"]

1. Nf3 {[%clk 0:03:00]}  f5 {[%clk 0:02:40]} 2. g3 {[%clk 0:02:50]}  d6 {[%clk 0:02:39]} 3. d4 {[%clk 0:02:46]}  g6 {[%clk 0:02:39]} 4. Bg2 {[%clk 0:02:46]}  Bg7 {[%clk 0:02:30]} 5. O-O {[%clk 0:02:46]}  Nf6 {[%clk 0:02:29]} 6. c4 {[%clk 0:02:45]}  O-O {[%clk 0:02:29]} 7. Nc3 {[%clk 0:02:45]}  Nbd7 {[%clk 0:02:27]} 8. e4 {[%clk 0:02:39]}  Nxe4 {[%clk 0:02:23]} 9. Nxe4 {[%clk 0:02:37]}  fxe4 {[%clk 0:02:24]} 10. Ng5 {[%clk 0:02:38]}  Nf6 {[%clk 0:02:24]} 11. Nxe4 {[%clk 0:02:34]}  Nxe4 {[%clk 0:02:25]} 12. Bxe4 {[%clk 0:02:33]}  e5 {[%clk 0:02:23]} 13. Be3 {[%clk 0:02:27]}  c6 {[%clk 0:02:18]} 14. dxe5 {[%clk 0:02:12]}  dxe5 {[%clk 0:02:14]} 15. Bc5 {[%clk 0:02:06]}  Re8 {[%clk 0:02:09]} 16. Qe2 {[%clk 0:02:00]}  Be6 {[%clk 0:02:05]} 17. Rad1 {[%clk 0:01:58]}  Qf6 {[%clk 0:02:04]} 18. b3 {[%clk 0:01:51]}  h5 {[%clk 0:02:01]} 19. h4 {[%clk 0:01:50]}  Bh3 {[%clk 0:01:59]} 20. Rfe1 {[%clk 0:01:50]}  Bg4 {[%clk 0:02:00]} 21. f3 {[%clk 0:01:50]}  Be6 {[%clk 0:02:00]} 22. Kg2 {[%clk 0:01:47]}  a6 {[%clk 0:01:56]} 23. Rd3 {[%clk 0:01:28]}  Rad8 {[%clk 0:01:54]} 24. Red1 {[%clk 0:01:28]}  Rxd3 {[%clk 0:01:53]} 25. Qxd3 {[%clk 0:01:26]}  Bf5 {[%clk 0:01:51]} 26. Be3 {[%clk 0:01:15]}  Bxe4 {[%clk 0:01:49]} 27. Qxe4 {[%clk 0:01:14]}  Qe6 {[%clk 0:01:49]} 28. c5 {[%clk 0:01:07]}  Bf8 {[%clk 0:01:48]} 29. Qd3 {[%clk 0:01:01]}  Re7 {[%clk 0:01:46]} 30. Qd6 {[%clk 0:00:56]}  Kf7 {[%clk 0:01:44]} 31. Qd8 {[%clk 0:00:52]}  e4 {[%clk 0:01:35]} 32. Rf1 {[%clk 0:00:46]}  Kg8 {[%clk 0:01:25]} 33. fxe4 {[%clk 0:00:42]}  Qxe4+ {[%clk 0:01:21]} 34. Kh2 {[%clk 0:00:42]}  Re8 {[%clk 0:01:20]} 35. Qg5 {[%clk 0:00:36]}  Qxe3 {[%clk 0:00:53]} 36. Qxg6+ {[%clk 0:00:36]}  Kh8 {[%clk 0:00:53]} 37. Qxh5+ {[%clk 0:00:32]}  Bh6 {[%clk 0:00:53]} 38. Rf3 {[%clk 0:00:28]}  Qe2+ {[%clk 0:00:48]} 39. Kh3 {[%clk 0:00:27]}  Qe6+ {[%clk 0:00:48]} 40. g4 {[%clk 0:00:26]}  Rg8 {[%clk 0:00:46]} 41. Qf5 {[%clk 0:00:20]}  Qxf5 {[%clk 0:00:43]} 42. Rxf5 {[%clk 0:00:21]}  Rf8 {[%clk 0:00:41]} 43. Rh5 {[%clk 0:00:17]}  Rf3+ {[%clk 0:00:17]} 44. Kg2 {[%clk 0:00:17]}  Rc3 {[%clk 0:00:17]} 45. Rxh6+ {[%clk 0:00:16]}  Kg7 {[%clk 0:00:17]} 46. Rh5 {[%clk 0:00:15]}  Rc2+ {[%clk 0:00:17]} 47. Kf3 {[%clk 0:00:16]}  Rxa2 {[%clk 0:00:18]} 48. Re5 {[%clk 0:00:16]}  Kf6 {[%clk 0:00:17]} 49. Rf5+ {[%clk 0:00:13]}  Kg6 {[%clk 0:00:16]} 50. h5+ {[%clk 0:00:13]}  Kh6 {[%clk 0:00:16]} 51. Rf6+ {[%clk 0:00:13]}  Kh7 {[%clk 0:00:16]} 52. Rf7+ {[%clk 0:00:13]}  Kh6 {[%clk 0:00:16]} 53. Rxb7 {[%clk 0:00:12]}  Rc2 {[%clk 0:00:16]} 54. b4 {[%clk 0:00:12]}  a5 {[%clk 0:00:16]} 55. bxa5 {[%clk 0:00:12]}  Rxc5 {[%clk 0:00:16]} 56. a6 {[%clk 0:00:13]}  Ra5 {[%clk 0:00:16]} 57. a7 {[%clk 0:00:13]}  c5 {[%clk 0:00:16]} 58. Kf4 {[%clk 0:00:13]}  c4 {[%clk 0:00:17]} 59. g5+ {[%clk 0:00:10]}  Kxh5 {[%clk 0:00:17]} 60. Rb6 {[%clk 0:00:09]} 1-0


[Site "https://www.chess.com"]

[Event "Titled Tuesday Blitz April 11 Early 2023"]
[White "Vlassov, Nikolai"]
[Black "Chandreyee, Hajra"]
[WhiteFideId "4103360"]
[BlackFideId "5056535"]
[WhiteElo "2324"]
[BlackElo "1725"]
[Result "1-0"]
[Round "10"]
[TimeControl "180+2"]
[Date "2023.04.11"]
[WhiteClock "0:00:17"]
[BlackClock "0:00:04"]

1. e4 {[%clk 0:03:00]}  e6 {[%clk 0:03:00]} 2. c4 {[%clk 0:03:00]}  d5 {[%clk 0:02:59]} 3. cxd5 {[%clk 0:03:00]}  exd5 {[%clk 0:03:00]} 4. Qb3 {[%clk 0:03:00]}  dxe4 {[%clk 0:02:52]} 5. Bc4 {[%clk 0:02:59]}  Qf6 {[%clk 0:02:33]} 6. Nc3 {[%clk 0:02:58]}  Qg6 {[%clk 0:02:16]} 7. Nge2 {[%clk 0:02:57]}  Bd6 {[%clk 0:02:05]} 8. O-O {[%clk 0:02:50]}  Nh6 {[%clk 0:01:59]} 9. d3 {[%clk 0:02:38]}  Bh3 {[%clk 0:01:49]} 10. Ng3 {[%clk 0:02:35]}  Bc8 {[%clk 0:01:19]} 11. Bxh6 {[%clk 0:02:28]}  gxh6 {[%clk 0:01:20]} 12. dxe4 {[%clk 0:02:20]}  Nc6 {[%clk 0:01:17]} 13. f4 {[%clk 0:01:54]}  Bc5+ {[%clk 0:01:03]} 14. Kh1 {[%clk 0:01:54]}  Nd4 {[%clk 0:00:55]} 15. Qd1 {[%clk 0:01:46]}  Bg4 {[%clk 0:00:53]} 16. Bxf7+ {[%clk 0:01:25]}  Kxf7 {[%clk 0:00:49]} 17. f5 {[%clk 0:01:25]}  Qg5 {[%clk 0:00:46]} 18. Qd3 {[%clk 0:01:23]}  b6 {[%clk 0:00:31]} 19. e5 {[%clk 0:01:15]}  Rhg8 {[%clk 0:00:27]} 20. Nce4 {[%clk 0:01:11]}  Qh4 {[%clk 0:00:22]} 21. e6+ {[%clk 0:01:04]}  Kg7 {[%clk 0:00:19]} 22. f6+ {[%clk 0:01:04]}  Kh8 {[%clk 0:00:19]} 23. f7 {[%clk 0:01:03]}  Bxe6 {[%clk 0:00:15]} 24. fxg8=Q+ {[%clk 0:00:59]}  Rxg8 {[%clk 0:00:15]} 25. Nxc5 {[%clk 0:00:54]}  bxc5 {[%clk 0:00:15]} 26. Qe4 {[%clk 0:00:47]}  Qxe4 {[%clk 0:00:11]} 27. Nxe4 {[%clk 0:00:46]}  Bd5 {[%clk 0:00:11]} 28. Rf4 {[%clk 0:00:35]}  Ne6 {[%clk 0:00:06]} 29. Rh4 {[%clk 0:00:33]}  c4 {[%clk 0:00:04]} 30. Re1 {[%clk 0:00:26]}  Rf8 {[%clk 0:00:04]} 31. h3 {[%clk 0:00:20]}  c6 {[%clk 0:00:04]} 32. Kh2 {[%clk 0:00:19]}  Kg7 {[%clk 0:00:04]} 33. Rg4+ {[%clk 0:00:19]}  Kh8 {[%clk 0:00:04]} 34. Nc3 {[%clk 0:00:17]}  Nc5 {[%clk 0:00:03]} 35. Nxd5 {[%clk 0:00:17]}  cxd5 {[%clk 0:00:03]} 36. Re7 {[%clk 0:00:17]}  Nd3 {[%clk 0:00:03]} 37. Rgg7 {[%clk 0:00:16]}  Rf2 {[%clk 0:00:04]} 38. Rxh7+ {[%clk 0:00:16]}  Kg8 {[%clk 0:00:04]} 39. Reg7+ {[%clk 0:00:17]}  Kf8 {[%clk 0:00:04]} 40. Rxa7 {[%clk 0:00:18]}  d4 {[%clk 0:00:04]} 41. Rh8# {[%clk 0:00:17]} 1-0


[Site "https://www.chess.com"]

[Event "Titled Tuesday Blitz April 11 Early 2023"]
[White "Zacurdajev, Dmitry"]
[Black "Dzagnidze, Nana"]
[WhiteFideId "4196309"]
[BlackFideId "13601903"]
[WhiteElo "2189"]
[BlackElo "2406"]
[Result "0-1"]
[Round "10"]
[TimeControl "180+2"]
[Date "2023.04.11"]
[WhiteClock "0:00:03"]
[BlackClock "0:00:22"]

1. d4 {[%clk 0:03:00]}  Nf6 {[%clk 0:02:55]} 2. c4 {[%clk 0:03:00]}  g6 {[%clk 0:02:53]} 3. Nc3 {[%clk 0:03:01]}  Bg7 {[%clk 0:02:53]} 4. e4 {[%clk 0:03:01]}  O-O {[%clk 0:02:53]} 5. Nf3 {[%clk 0:03:01]}  d6 {[%clk 0:02:50]} 6. Be2 {[%clk 0:03:02]}  c5 {[%clk 0:02:49]} 7. d5 {[%clk 0:03:00]}  e6 {[%clk 0:02:47]} 8. O-O {[%clk 0:02:56]}  exd5 {[%clk 0:02:47]} 9. exd5 {[%clk 0:02:41]}  Bf5 {[%clk 0:02:46]} 10. Bd3 {[%clk 0:02:39]}  Bg4 {[%clk 0:02:36]} 11. h3 {[%clk 0:02:37]}  Bxf3 {[%clk 0:02:36]} 12. Qxf3 {[%clk 0:02:38]}  a6 {[%clk 0:02:35]} 13. Bg5 {[%clk 0:02:33]}  Nbd7 {[%clk 0:02:31]} 14. Ne4 {[%clk 0:02:32]}  h6 {[%clk 0:02:28]} 15. Bh4 {[%clk 0:02:27]}  Ne5 {[%clk 0:01:52]} 16. Nxf6+ {[%clk 0:02:02]}  Kh8 {[%clk 0:01:50]} 17. Qe4 {[%clk 0:01:35]}  Bxf6 {[%clk 0:01:45]} 18. Bxf6+ {[%clk 0:01:35]}  Qxf6 {[%clk 0:01:44]} 19. f4 {[%clk 0:01:11]}  Nxd3 {[%clk 0:01:40]} 20. Qxd3 {[%clk 0:01:12]}  Rfe8 {[%clk 0:01:40]} 21. f5 {[%clk 0:01:06]}  g5 {[%clk 0:01:39]} 22. Rfe1 {[%clk 0:00:51]}  Rab8 {[%clk 0:01:19]} 23. b3 {[%clk 0:00:47]}  b5 {[%clk 0:01:12]} 24. Rab1 {[%clk 0:00:35]}  b4 {[%clk 0:00:52]} 25. Re3 {[%clk 0:00:18]}  Re5 {[%clk 0:00:39]} 26. Rbe1 {[%clk 0:00:15]}  Rbe8 {[%clk 0:00:38]} 27. Rxe5 {[%clk 0:00:09]}  Rxe5 {[%clk 0:00:39]} 28. Rxe5 {[%clk 0:00:08]}  Qxe5 {[%clk 0:00:40]} 29. Qf3 {[%clk 0:00:07]}  Kg7 {[%clk 0:00:39]} 30. Kf2 {[%clk 0:00:03]}  a5 {[%clk 0:00:38]} 31. g4 {[%clk 0:00:02]}  Kf6 {[%clk 0:00:29]} 32. Kg2 {[%clk 0:00:01]}  Qb2+ {[%clk 0:00:28]} 33. Qf2 {[%clk 0:00:02]}  Qxf2+ {[%clk 0:00:23]} 34. Kxf2 {[%clk 0:00:02]}  Ke5 {[%clk 0:00:24]} 35. Ke2 {[%clk 0:00:01]}  Ke4 {[%clk 0:00:23]} 36. Kf2 {[%clk 0:00:01]}  Kd3 {[%clk 0:00:22]} 37. Kf3 {[%clk 0:00:01]}  Kc3 {[%clk 0:00:22]} 38. Ke3 {[%clk 0:00:01]}  Kb2 {[%clk 0:00:22]} 39. Kd2 {[%clk 0:00:02]}  Kxa2 {[%clk 0:00:22]} 40. Kc2 {[%clk 0:00:03]}  Ka3 {[%clk 0:00:22]} 0-1


[Site "https://www.chess.com"]

[Event "Titled Tuesday Blitz April 11 Early 2023"]
[White "mohsengabr2002"]
[Black "Ibadov, Dashgyn"]
[BlackFideId "24107514"]
[WhiteElo "2430"]
[BlackElo "2208"]
[Result "0-1"]
[Round "10"]
[TimeControl "180+2"]
[Date "2023.04.11"]
[WhiteClock "0:00:29"]
[BlackClock "0:00:26"]

1. e4 {[%clk 0:02:45]}  e6 {[%clk 0:02:59]} 2. d3 {[%clk 0:02:43]}  d5 {[%clk 0:02:59]} 3. Nd2 {[%clk 0:02:42]}  Nf6 {[%clk 0:03:00]} 4. Ngf3 {[%clk 0:02:38]}  c5 {[%clk 0:02:59]} 5. g3 {[%clk 0:02:36]}  Nc6 {[%clk 0:03:00]} 6. Bg2 {[%clk 0:02:36]}  g6 {[%clk 0:03:00]} 7. O-O {[%clk 0:02:37]}  Bg7 {[%clk 0:03:01]} 8. Re1 {[%clk 0:02:37]}  O-O {[%clk 0:03:02]} 9. Nf1 {[%clk 0:02:29]}  dxe4 {[%clk 0:03:00]} 10. dxe4 {[%clk 0:02:26]}  Qxd1 {[%clk 0:03:01]} 11. Rxd1 {[%clk 0:02:26]}  Nxe4 {[%clk 0:03:02]} 12. c3 {[%clk 0:02:25]}  e5 {[%clk 0:02:47]} 13. Be3 {[%clk 0:02:24]}  Be6 {[%clk 0:02:34]} 14. Nxe5 {[%clk 0:02:19]}  Nxf2 {[%clk 0:02:29]} 15. Nxc6 {[%clk 0:02:17]}  Nxd1 {[%clk 0:02:28]} 16. Ne7+ {[%clk 0:02:17]}  Kh8 {[%clk 0:02:28]} 17. Rxd1 {[%clk 0:02:17]}  Bxa2 {[%clk 0:02:03]} 18. Bxc5 {[%clk 0:02:10]}  Rad8 {[%clk 0:02:02]} 19. Nd5 {[%clk 0:01:35]}  Rfe8 {[%clk 0:01:58]} 20. Bxa7 {[%clk 0:01:33]}  Re2 {[%clk 0:01:55]} 21. Bf3 {[%clk 0:01:24]}  Rxb2 {[%clk 0:01:53]} 22. Nfe3 {[%clk 0:01:17]}  f5 {[%clk 0:01:23]} 23. Bc5 {[%clk 0:01:13]}  Bb3 {[%clk 0:01:15]} 24. Rd3 {[%clk 0:01:05]}  Be5 {[%clk 0:01:00]} 25. Bb4 {[%clk 0:01:01]}  Kg7 {[%clk 0:00:57]} 26. Nf4 {[%clk 0:00:43]}  Bxf4 {[%clk 0:00:46]} 27. Rxd8 {[%clk 0:00:34]}  Bxe3+ {[%clk 0:00:46]} 28. Kf1 {[%clk 0:00:34]}  Bc4+ {[%clk 0:00:44]} 29. Ke1 {[%clk 0:00:33]}  Rxh2 {[%clk 0:00:34]} 30. Rd7+ {[%clk 0:00:32]}  Kf6 {[%clk 0:00:29]} 31. Rxb7 {[%clk 0:00:30]}  Bd2+ {[%clk 0:00:26]} 32. Kd1 {[%clk 0:00:29]}  Bb3# {[%clk 0:00:26]} 0-1


[Site "https://www.chess.com"]